[Event "*** Titled Tuesday Blitz"]
[Site "Chess.com"]
[Date "2020.04.14"]
[Round "8"]
[White "tgpgoat"]
[Black "tonyq11"]
[Result "1-0"]
[WhiteElo "2112"]
[BlackElo "2229"]
[TimeControl "180+1"]
[EndTime "11:29:00 PDT"]
[Termination "tgpgoat won on time"]

1. d4 {[%clk 0:03:00.9]} 1... d5 {[%clk 0:02:55.8]} 2. Nf3 {[%clk 0:02:58.4]}
2... Nf6 {[%clk 0:02:55.5]} 3. c4 {[%clk 0:02:58.2]} 3... e6 {[%clk 0:02:55.2]}
4. Nc3 {[%clk 0:02:57.7]} 4... dxc4 {[%clk 0:02:49.1]} 5. e3 {[%clk 0:02:45.9]}
5... Bb4 {[%clk 0:02:41.3]} 6. Bxc4 {[%clk 0:02:45.3]} 6... c5 {[%clk
0:02:34.7]} 7. O-O {[%clk 0:02:43.8]} 7... O-O {[%clk 0:02:34.2]} 8. dxc5 {[%clk
0:02:41.6]} 8... Bxc5 {[%clk 0:02:32.3]} 9. b3 {[%clk 0:02:37.5]} 9... a6 {[%clk
0:02:26.8]} 10. Bb2 {[%clk 0:02:37.3]} 10... b5 {[%clk 0:02:26.3]} 11. Be2
{[%clk 0:02:36.1]} 11... Bb7 {[%clk 0:02:25.8]} 12. Rc1 {[%clk 0:02:33.5]} 12...
Bd6 {[%clk 0:02:18.5]} 13. Qc2 {[%clk 0:02:26.6]} 13... Nc6 {[%clk 0:02:14.5]}
14. Rfd1 {[%clk 0:02:26]} 14... Qe7 {[%clk 0:02:12.8]} 15. Ne4 {[%clk
0:02:17.1]} 15... Nxe4 {[%clk 0:02:02.9]} 16. Qxe4 {[%clk 0:02:18]} 16... Ne5
{[%clk 0:01:54.8]} 17. Qd4 {[%clk 0:02:08]} 17... Bxf3 {[%clk 0:01:18.8]} 18.
Bxf3 {[%clk 0:02:01.4]} 18... Rad8 {[%clk 0:01:04.8]} 19. Be2 {[%clk 0:01:47.5]}
19... f5 {[%clk 0:00:22.2]} 20. Qb6 {[%clk 0:01:31.2]} 20... Bc7 {[%clk
0:00:12]} 21. Qxc7 {[%clk 0:01:24.1]} 21... Qxc7 {[%clk 0:00:04.4]} 22. Rxc7
{[%clk 0:01:21.6]} 22... Rxd1+ {[%clk 0:00:03.9]} 23. Bxd1 {[%clk 0:01:22.5]}
23... Rd8 {[%clk 0:00:03.8]} 24. Be2 {[%clk 0:01:10.2]} 24... Nd3 {[%clk
0:00:03.8]} 25. Rxg7+ {[%clk 0:01:08.1]} 25... Kf8 {[%clk 0:00:03.4]} 26. Bxd3
{[%clk 0:01:03.6]} 26... Rxd3 {[%clk 0:00:03]} 27. h3 {[%clk 0:00:42.3]} 27...
Rd2 {[%clk 0:00:02.8]} 28. Bf6 {[%clk 0:00:37.6]} 28... Rxa2 {[%clk 0:00:01.4]}
29. Rxh7 {[%clk 0:00:37.2]} 1-0

[Event "*** Titled Tuesday Blitz"]
[Site "Chess.com"]
[Date "2020.04.14"]
[Round "8"]
[White "SGchess01"]
[Black "mbachez"]
[Result "0-1"]
[WhiteElo "2691"]
[BlackElo "2537"]
[TimeControl "180+1"]
[EndTime "11:29:01 PDT"]
[Termination "mbachez won by checkmate"]

1. e4 {[%clk 0:03:00.6]} 1... e6 {[%clk 0:02:59.3]} 2. d4 {[%clk 0:03:00.6]}
2... d5 {[%clk 0:02:59.4]} 3. exd5 {[%clk 0:03:01.5]} 3... exd5 {[%clk
0:02:59.1]} 4. Nf3 {[%clk 0:03:02.1]} 4... c5 {[%clk 0:02:58.8]} 5. Nc3 {[%clk
0:03:00.7]} 5... Nc6 {[%clk 0:02:51.9]} 6. dxc5 {[%clk 0:02:58.8]} 6... d4
{[%clk 0:02:44.7]} 7. Ne4 {[%clk 0:02:58.6]} 7... Bf5 {[%clk 0:02:37.1]} 8. Qe2
{[%clk 0:02:52]} 8... Bxe4 {[%clk 0:02:23.9]} 9. Qxe4+ {[%clk 0:02:51.5]} 9...
Be7 {[%clk 0:02:24.1]} 10. Bb5 {[%clk 0:02:46]} 10... Qa5+ {[%clk 0:02:23.5]}
11. Bd2 {[%clk 0:02:41]} 11... Qxb5 {[%clk 0:02:23.6]} 12. O-O-O {[%clk
0:02:37]} 12... Nf6 {[%clk 0:02:22.6]} 13. Qf5 {[%clk 0:02:34.6]} 13... Qxc5
{[%clk 0:02:22.3]} 14. Qd3 {[%clk 0:02:34.4]} 14... O-O {[%clk 0:02:20.7]} 15.
Rhe1 {[%clk 0:02:33.8]} 15... Rac8 {[%clk 0:02:20.1]} 16. a3 {[%clk 0:02:33.3]}
16... Rfe8 {[%clk 0:02:19]} 17. Kb1 {[%clk 0:02:33.7]} 17... Bf8 {[%clk
0:02:18.8]} 18. Bg5 {[%clk 0:02:32.8]} 18... Nd5 {[%clk 0:02:09.1]} 19. h4
{[%clk 0:02:26]} 19... h6 {[%clk 0:02:07.6]} 20. Bd2 {[%clk 0:02:24.6]} 20...
Qb6 {[%clk 0:02:02.6]} 21. Ka1 {[%clk 0:02:13.6]} 21... Qa6 {[%clk 0:01:59.7]}
22. Qb3 {[%clk 0:02:13.3]} 22... Nb6 {[%clk 0:01:49.5]} 23. Ng5 {[%clk
0:01:47.2]} 23... hxg5 {[%clk 0:01:47.5]} 24. hxg5 {[%clk 0:01:47.6]} 24... Qc4
{[%clk 0:01:28.1]} 25. Qh3 {[%clk 0:01:46.7]} 25... Rxe1 {[%clk 0:00:45]} 26.
Rxe1 {[%clk 0:01:44.6]} 26... g6 {[%clk 0:00:45.2]} 27. Bf4 {[%clk 0:01:07.8]}
27... Bg7 {[%clk 0:00:44.1]} 28. Rh1 {[%clk 0:00:58.6]} 28... Qe6 {[%clk
0:00:41.7]} 29. Qh7+ {[%clk 0:00:57.1]} 29... Kf8 {[%clk 0:00:41.7]} 30. Bd2
{[%clk 0:00:52.2]} 30... d3 {[%clk 0:00:40.2]} 31. Re1 {[%clk 0:00:50.2]} 31...
Qxe1+ {[%clk 0:00:26.7]} 32. Bxe1 {[%clk 0:00:49.3]} 32... dxc2 {[%clk 0:00:27]}
33. Bd2 {[%clk 0:00:46.1]} 33... Nc4 {[%clk 0:00:27.2]} 34. Bc1 {[%clk
0:00:45.9]} 34... Nxb2 {[%clk 0:00:27.3]} 35. Qh3 {[%clk 0:00:39.8]} 35... Nd3+
{[%clk 0:00:26.2]} 36. Ka2 {[%clk 0:00:39.2]} 36... Nxc1# {[%clk 0:00:26]} 0-1

[Event "*** Titled Tuesday Blitz"]
[Site "Chess.com"]
[Date "2020.04.14"]
[Round "8"]
[White "ulkaf961"]
[Black "Bastiandash"]
[Result "1-0"]
[WhiteElo "2255"]
[BlackElo "2053"]
[TimeControl "180+1"]
[EndTime "11:29:01 PDT"]
[Termination "ulkaf961 won by checkmate"]

1. e4 {[%clk 0:03:00.9]} 1... c5 {[%clk 0:02:55.8]} 2. Nf3 {[%clk 0:03:00.8]}
2... e6 {[%clk 0:02:55.4]} 3. d4 {[%clk 0:02:55.8]} 3... cxd4 {[%clk 0:02:56.3]}
4. Nxd4 {[%clk 0:02:56]} 4... a6 {[%clk 0:02:57]} 5. Bd3 {[%clk 0:02:52.3]} 5...
Bc5 {[%clk 0:02:55.8]} 6. Nb3 {[%clk 0:02:51]} 6... Be7 {[%clk 0:02:55.7]} 7.
Qg4 {[%clk 0:02:50.3]} 7... g6 {[%clk 0:02:55.3]} 8. Nc3 {[%clk 0:02:45.9]} 8...
d6 {[%clk 0:02:55.3]} 9. O-O {[%clk 0:02:44]} 9... Nd7 {[%clk 0:02:54.6]} 10.
Be3 {[%clk 0:02:42.7]} 10... Ne5 {[%clk 0:02:48.3]} 11. Qe2 {[%clk 0:02:41.6]}
11... Nf6 {[%clk 0:02:40.7]} 12. a4 {[%clk 0:02:40.8]} 12... O-O {[%clk
0:02:22.7]} 13. a5 {[%clk 0:02:39.5]} 13... Nxd3 {[%clk 0:01:56.8]} 14. cxd3
{[%clk 0:02:38.5]} 14... Nd7 {[%clk 0:01:56.1]} 15. Na4 {[%clk 0:02:30.7]} 15...
Bf6 {[%clk 0:01:53.8]} 16. Bh6 {[%clk 0:02:26.8]} 16... Re8 {[%clk 0:01:51.6]}
17. d4 {[%clk 0:02:23.5]} 17... Bg7 {[%clk 0:01:50.5]} 18. Bxg7 {[%clk
0:02:22.5]} 18... Kxg7 {[%clk 0:01:51.4]} 19. Rac1 {[%clk 0:02:17]} 19... Rb8
{[%clk 0:01:41.9]} 20. e5 {[%clk 0:02:15.3]} 20... b5 {[%clk 0:01:26.7]} 21. Nc3
{[%clk 0:02:06.2]} 21... Qe7 {[%clk 0:01:23.6]} 22. f4 {[%clk 0:01:51]} 22...
Bb7 {[%clk 0:01:21.2]} 23. Nd2 {[%clk 0:01:48.1]} 23... d5 {[%clk 0:00:41.1]}
24. Rf3 {[%clk 0:01:37.2]} 24... b4 {[%clk 0:00:29]} 25. Nd1 {[%clk 0:01:36.7]}
25... Qd8 {[%clk 0:00:28.8]} 26. Nb3 {[%clk 0:01:31]} 26... Rc8 {[%clk
0:00:28.8]} 27. Rxc8 {[%clk 0:01:28.9]} 27... Qxc8 {[%clk 0:00:29.7]} 28. Qd2
{[%clk 0:01:28.5]} 28... Qc4 {[%clk 0:00:28.8]} 29. Nc1 {[%clk 0:01:13.3]} 29...
Rc8 {[%clk 0:00:26.9]} 30. Ne2 {[%clk 0:01:12.3]} 30... Qb5 {[%clk 0:00:19.8]}
31. Rh3 {[%clk 0:01:05.1]} 31... Qxa5 {[%clk 0:00:19.3]} 32. f5 {[%clk 0:01:05]}
32... exf5 {[%clk 0:00:18.8]} 33. Qh6+ {[%clk 0:01:04.7]} 33... Kg8 {[%clk
0:00:19.2]} 34. Qxh7+ {[%clk 0:01:04.2]} 34... Kf8 {[%clk 0:00:19.4]} 35. e6
{[%clk 0:01:01.9]} 35... fxe6 {[%clk 0:00:08.7]} 36. Qxd7 {[%clk 0:01:01.5]}
36... Qc7 {[%clk 0:00:08.3]} 37. Rh8# {[%clk 0:01:00.7]} 1-0

[Event "*** Titled Tuesday Blitz"]
[Site "Chess.com"]
[Date "2020.04.14"]
[Round "8"]
[White "CMS13"]
[Black "Training_Day"]
[Result "0-1"]
[WhiteElo "2129"]
[BlackElo "2302"]
[TimeControl "180+1"]
[EndTime "11:29:02 PDT"]
[Termination "Training_Day won by checkmate"]

1. e4 {[%clk 0:03:00.9]} 1... e5 {[%clk 0:02:59.8]} 2. Bc4 {[%clk 0:03:00.4]}
2... Nc6 {[%clk 0:02:59.2]} 3. Nc3 {[%clk 0:03:00.6]} 3... Nf6 {[%clk
0:02:59.1]} 4. d3 {[%clk 0:03:00.2]} 4... Na5 {[%clk 0:02:59.4]} 5. Nge2 {[%clk
0:02:58.9]} 5... Be7 {[%clk 0:02:58.9]} 6. Bb3 {[%clk 0:02:54.8]} 6... Nxb3
{[%clk 0:02:52.5]} 7. axb3 {[%clk 0:02:55]} 7... d5 {[%clk 0:02:50]} 8. exd5
{[%clk 0:02:51.2]} 8... Nxd5 {[%clk 0:02:49.7]} 9. O-O {[%clk 0:02:51.5]} 9...
O-O {[%clk 0:02:49.3]} 10. f4 {[%clk 0:02:51.2]} 10... Bc5+ {[%clk 0:02:05.2]}
11. Kh1 {[%clk 0:02:50.2]} 11... exf4 {[%clk 0:02:05.1]} 12. Nxd5 {[%clk
0:02:46.4]} 12... Qxd5 {[%clk 0:02:03.2]} 13. Nxf4 {[%clk 0:02:46.5]} 13... Qd8
{[%clk 0:01:49.8]} 14. Qh5 {[%clk 0:02:42.2]} 14... Bd6 {[%clk 0:01:46.4]} 15.
Bd2 {[%clk 0:02:40.6]} 15... h6 {[%clk 0:01:29.3]} 16. Nd5 {[%clk 0:02:38.7]}
16... f5 {[%clk 0:01:08.3]} 17. Bc3 {[%clk 0:02:21.8]} 17... Qe8 {[%clk
0:01:00.9]} 18. Qf3 {[%clk 0:02:04.1]} 18... Bd7 {[%clk 0:00:51.6]} 19. Rae1
{[%clk 0:02:02.6]} 19... Qf7 {[%clk 0:00:51.7]} 20. Nf4 {[%clk 0:01:57.2]} 20...
Bc6 {[%clk 0:00:48.8]} 21. Qf2 {[%clk 0:01:55.2]} 21... Rae8 {[%clk 0:00:42.2]}
22. Qh4 {[%clk 0:01:43.1]} 22... Rxe1 {[%clk 0:00:27.6]} 23. Rxe1 {[%clk
0:01:38.2]} 23... Re8 {[%clk 0:00:27.9]} 24. Rxe8+ {[%clk 0:01:28.2]} 24... Qxe8
{[%clk 0:00:27.2]} 25. Nh5 {[%clk 0:01:21.9]} 25... Qe2 {[%clk 0:00:20.6]} 26.
Qc4+ {[%clk 0:01:08.5]} 26... Kh7 {[%clk 0:00:17.9]} 27. Nf6+ {[%clk 0:01:06.5]}
27... Kg6 {[%clk 0:00:16.5]} 28. Qxc6 {[%clk 0:00:22.8]} 28... Qf1# {[%clk
0:00:14.8]} 0-1

[Event "*** Titled Tuesday Blitz"]
[Site "Chess.com"]
[Date "2020.04.14"]
[Round "8"]
[White "j2806"]
[Black "Bad4life"]
[Result "1-0"]
[WhiteElo "2008"]
[BlackElo "2293"]
[TimeControl "180+1"]
[EndTime "11:29:02 PDT"]
[Termination "j2806 won on time"]

1. e4 {[%clk 0:03:00.9]} 1... c5 {[%clk 0:02:59.7]} 2. Nf3 {[%clk 0:03:00.3]}
2... g6 {[%clk 0:02:59.2]} 3. d4 {[%clk 0:02:59]} 3... cxd4 {[%clk 0:03:00.1]}
4. Nxd4 {[%clk 0:02:59.1]} 4... Nc6 {[%clk 0:03:00.1]} 5. Be3 {[%clk 0:02:58.8]}
5... Bg7 {[%clk 0:02:58.6]} 6. c4 {[%clk 0:02:54.9]} 6... Nh6 {[%clk 0:02:54]}
7. Nc3 {[%clk 0:02:48.8]} 7... O-O {[%clk 0:02:53.7]} 8. f3 {[%clk 0:02:46.6]}
8... d6 {[%clk 0:02:46.6]} 9. Qd2 {[%clk 0:02:45.1]} 9... Bxd4 {[%clk
0:02:19.1]} 10. Bxd4 {[%clk 0:02:29.9]} 10... f5 {[%clk 0:02:16.5]} 11. Be2
{[%clk 0:02:24.2]} 11... f4 {[%clk 0:02:02]} 12. O-O {[%clk 0:02:15.4]} 12... e5
{[%clk 0:01:58.7]} 13. Bf2 {[%clk 0:02:12.4]} 13... g5 {[%clk 0:01:48]} 14. Rfd1
{[%clk 0:02:08]} 14... Rf6 {[%clk 0:01:25.9]} 15. Nd5 {[%clk 0:01:57.4]} 15...
Rg6 {[%clk 0:01:23.5]} 16. c5 {[%clk 0:01:51.4]} 16... g4 {[%clk 0:01:14.8]} 17.
cxd6 {[%clk 0:01:46]} 17... g3 {[%clk 0:01:10.6]} 18. Bc5 {[%clk 0:01:35.4]}
18... Qh4 {[%clk 0:01:02.9]} 19. h3 {[%clk 0:01:26.7]} 19... b6 {[%clk
0:01:02.1]} 20. Ne7+ {[%clk 0:01:22.8]} 20... Kg7 {[%clk 0:00:37.9]} 21. Nxg6
{[%clk 0:01:18.4]} 21... hxg6 {[%clk 0:00:37.5]} 22. d7 {[%clk 0:01:04.6]} 22...
bxc5 {[%clk 0:00:35.7]} 23. dxc8=Q {[%clk 0:01:02.2]} 23... Rxc8 {[%clk
0:00:33.7]} 24. Qd7+ {[%clk 0:01:01.5]} 24... Ne7 {[%clk 0:00:33.6]} 25. Ba6
{[%clk 0:00:57]} 25... Rf8 {[%clk 0:00:25]} 26. Rd6 {[%clk 0:00:54.5]} 26... Nf7
{[%clk 0:00:21.5]} 27. Rdd1 {[%clk 0:00:50.9]} 27... Rd8 {[%clk 0:00:06.8]} 28.
Qe6 {[%clk 0:00:48.4]} 28... Rb8 {[%clk 0:00:05.2]} 29. Rd7 {[%clk 0:00:46.5]}
29... Rf8 {[%clk 0:00:02.6]} 30. Qxe7 {[%clk 0:00:46.4]} 30... Qh6 {[%clk
0:00:02.1]} 31. Bc4 {[%clk 0:00:42.4]} 1-0

[Event "*** Titled Tuesday Blitz"]
[Site "Chess.com"]
[Date "2020.04.14"]
[Round "8"]
[White "adiosabu"]
[Black "exoticprincess"]
[Result "0-1"]
[WhiteElo "2567"]
[BlackElo "2866"]
[TimeControl "180+1"]
[EndTime "11:29:03 PDT"]
[Termination "exoticprincess won on time"]

1. e4 {[%clk 0:03:00.9]} 1... c6 {[%clk 0:03:00.9]} 2. d4 {[%clk 0:02:58.1]}
2... d5 {[%clk 0:03:01.8]} 3. Nc3 {[%clk 0:02:56.7]} 3... dxe4 {[%clk
0:03:01.8]} 4. Nxe4 {[%clk 0:02:56.3]} 4... Nf6 {[%clk 0:03:02.7]} 5. Nxf6+
{[%clk 0:02:55.9]} 5... exf6 {[%clk 0:03:03.6]} 6. c3 {[%clk 0:02:56.5]} 6...
Bd6 {[%clk 0:03:03.8]} 7. Bd3 {[%clk 0:02:57.1]} 7... O-O {[%clk 0:03:03.4]} 8.
Qc2 {[%clk 0:02:57.6]} 8... Re8+ {[%clk 0:03:03.3]} 9. Ne2 {[%clk 0:02:58.2]}
9... h5 {[%clk 0:03:03.7]} 10. Be3 {[%clk 0:02:57.8]} 10... Nd7 {[%clk
0:03:03.3]} 11. O-O-O {[%clk 0:02:56.5]} 11... Nf8 {[%clk 0:03:03.6]} 12. Kb1
{[%clk 0:02:56]} 12... h4 {[%clk 0:03:02.6]} 13. c4 {[%clk 0:02:47.2]} 13... h3
{[%clk 0:03:01.3]} 14. gxh3 {[%clk 0:02:41.9]} 14... Bxh3 {[%clk 0:03:01.3]} 15.
Rhg1 {[%clk 0:02:41.7]} 15... Qd7 {[%clk 0:02:53.1]} 16. Nf4 {[%clk 0:01:46.7]}
16... Bxf4 {[%clk 0:02:50.9]} 17. Bxf4 {[%clk 0:01:46]} 17... Ng6 {[%clk
0:02:50.8]} 18. Be3 {[%clk 0:01:39.9]} 18... f5 {[%clk 0:02:45.3]} 19. Rg5
{[%clk 0:01:17.8]} 19... f4 {[%clk 0:02:16.2]} 20. Bc1 {[%clk 0:01:16.6]} 20...
f3 {[%clk 0:02:12.5]} 21. Bxg6 {[%clk 0:00:55.6]} 21... fxg6 {[%clk 0:02:12.3]}
22. Qxg6 {[%clk 0:00:56.2]} 22... Re6 {[%clk 0:02:01]} 23. Qh5 {[%clk
0:00:52.3]} 23... Bg2 {[%clk 0:01:59]} 24. d5 {[%clk 0:00:44.8]} 24... Re2
{[%clk 0:01:56.6]} 25. Qg6 {[%clk 0:00:32.4]} 25... c5 {[%clk 0:01:41.7]} 26.
Rh5 {[%clk 0:00:27.6]} 26... Rf8 {[%clk 0:01:23.1]} 27. Qh7+ {[%clk 0:00:20.5]}
27... Kf7 {[%clk 0:01:23.4]} 28. Rf5+ {[%clk 0:00:19.9]} 28... Ke8 {[%clk
0:01:23.9]} 29. Qg6+ {[%clk 0:00:18.9]} 29... Rf7 {[%clk 0:01:23.4]} 30. Rh5
{[%clk 0:00:18.9]} 30... Kd8 {[%clk 0:01:20.6]} 31. d6 {[%clk 0:00:18.4]} 31...
Re8 {[%clk 0:01:19]} 32. Bg5+ {[%clk 0:00:16.2]} 32... Kc8 {[%clk 0:01:19.2]}
33. Bc1 {[%clk 0:00:16]} 33... b6 {[%clk 0:01:18.6]} 34. a3 {[%clk 0:00:15.3]}
34... Rf6 {[%clk 0:01:18.7]} 35. Qd3 {[%clk 0:00:12.9]} 35... Rd8 {[%clk
0:01:14]} 36. Qd5 {[%clk 0:00:12.9]} 36... Kb8 {[%clk 0:01:09.3]} 37. Rg5 {[%clk
0:00:10.1]} 37... Qf7 {[%clk 0:01:01.6]} 0-1

[Event "*** Titled Tuesday Blitz"]
[Site "Chess.com"]
[Date "2020.04.14"]
[Round "8"]
[White "Poghosyan_Suren"]
[Black "VerdeNotte"]
[Result "0-1"]
[WhiteElo "2506"]
[BlackElo "2669"]
[TimeControl "180+1"]
[EndTime "11:29:03 PDT"]
[Termination "VerdeNotte won by resignation"]

1. Nf3 {[%clk 0:03:00.9]} 1... g6 {[%clk 0:02:59.9]} 2. c4 {[%clk 0:02:56.9]}
2... c5 {[%clk 0:02:58.7]} 3. Nc3 {[%clk 0:02:56.7]} 3... Nc6 {[%clk 0:02:58.7]}
4. b3 {[%clk 0:02:56.9]} 4... Bg7 {[%clk 0:02:58.9]} 5. Bb2 {[%clk 0:02:57.5]}
5... e5 {[%clk 0:02:56.2]} 6. d3 {[%clk 0:02:56]} 6... f5 {[%clk 0:02:54.8]} 7.
g3 {[%clk 0:02:49.8]} 7... e4 {[%clk 0:02:54.6]} 8. dxe4 {[%clk 0:02:48.8]} 8...
fxe4 {[%clk 0:02:54.8]} 9. Nd2 {[%clk 0:02:48.3]} 9... e3 {[%clk 0:02:55.2]} 10.
fxe3 {[%clk 0:02:47.1]} 10... Nh6 {[%clk 0:02:55.2]} 11. Bh3 {[%clk 0:02:44.6]}
11... d5 {[%clk 0:02:27.8]} 12. Bxc8 {[%clk 0:02:36.6]} 12... Qxc8 {[%clk
0:02:23.7]} 13. cxd5 {[%clk 0:02:35]} 13... Ne5 {[%clk 0:02:18.6]} 14. Nc4
{[%clk 0:02:05.7]} 14... O-O {[%clk 0:02:05.7]} 15. Qd2 {[%clk 0:02:00.2]} 15...
Nhg4 {[%clk 0:01:54.3]} 16. Nxe5 {[%clk 0:01:52]} 16... Bxe5 {[%clk 0:01:51]}
17. O-O-O {[%clk 0:01:04.3]} 17... Nf2 {[%clk 0:01:50.5]} 18. Rhf1 {[%clk
0:01:04.5]} 18... Nxd1 {[%clk 0:01:49.8]} 19. Rxd1 {[%clk 0:01:05.4]} 19... Qf5
{[%clk 0:01:36.2]} 20. d6 {[%clk 0:00:54]} 20... Rad8 {[%clk 0:01:31.3]} 21. Nd5
{[%clk 0:00:53.4]} 21... Bxd6 {[%clk 0:01:18.8]} 22. Qc3 {[%clk 0:00:51.4]}
22... Kf7 {[%clk 0:01:06.8]} 23. Qg7+ {[%clk 0:00:43.4]} 23... Ke6 {[%clk
0:00:57.2]} 24. Qxb7 {[%clk 0:00:25.5]} 24... Rd7 {[%clk 0:00:46.2]} 25. Qc6
{[%clk 0:00:23.6]} 25... Kf7 {[%clk 0:00:38.3]} 26. e4 {[%clk 0:00:22.1]} 26...
Qe6 {[%clk 0:00:31.3]} 27. Nc7 {[%clk 0:00:14.1]} 27... Bf4+ {[%clk 0:00:30]}
28. gxf4 {[%clk 0:00:11.6]} 28... Rxd1+ {[%clk 0:00:29.6]} 0-1

[Event "*** Titled Tuesday Blitz"]
[Site "Chess.com"]
[Date "2020.04.14"]
[Round "8"]
[White "TastyTablet"]
[Black "JakubPulpan"]
[Result "1/2-1/2"]
[WhiteElo "2595"]
[BlackElo "2754"]
[TimeControl "180+1"]
[EndTime "11:29:04 PDT"]
[Termination "Game drawn by agreement"]

1. e4 {[%clk 0:03:00.9]} 1... c5 {[%clk 0:02:56]} 2. Nf3 {[%clk 0:03:00.3]} 2...
d6 {[%clk 0:02:54.9]} 3. d4 {[%clk 0:02:59.6]} 3... cxd4 {[%clk 0:02:54]} 4.
Nxd4 {[%clk 0:03:00.3]} 4... Nf6 {[%clk 0:02:32.9]} 5. Nc3 {[%clk 0:02:59.9]}
5... a6 {[%clk 0:02:32.8]} 6. f3 {[%clk 0:02:58.5]} 6... e5 {[%clk 0:02:30.4]}
7. Nb3 {[%clk 0:02:58.1]} 7... Be6 {[%clk 0:02:26.3]} 8. Be3 {[%clk 0:02:58.4]}
8... h5 {[%clk 0:02:26.6]} 9. Qd2 {[%clk 0:02:57.8]} 9... Nbd7 {[%clk
0:02:27.1]} 10. Nd5 {[%clk 0:02:55.3]} 10... Bxd5 {[%clk 0:02:26.2]} 11. exd5
{[%clk 0:02:55.8]} 11... g6 {[%clk 0:02:23.9]} 12. Be2 {[%clk 0:02:55.7]} 12...
Bg7 {[%clk 0:02:23.7]} 13. O-O {[%clk 0:02:54.7]} 13... b6 {[%clk 0:02:22.5]}
14. c4 {[%clk 0:02:52.7]} 14... O-O {[%clk 0:02:22.5]} 15. Rae1 {[%clk
0:02:50.9]} 15... a5 {[%clk 0:02:19.4]} 16. Na1 {[%clk 0:02:45.7]} 16... e4
{[%clk 0:02:10.7]} 17. f4 {[%clk 0:02:44.6]} 17... Ng4 {[%clk 0:02:09.4]} 18.
Bxg4 {[%clk 0:02:44.4]} 18... hxg4 {[%clk 0:02:08.5]} 19. Nc2 {[%clk 0:02:44.2]}
19... f5 {[%clk 0:02:08.2]} 20. Nd4 {[%clk 0:02:43.8]} 20... Bxd4 {[%clk
0:02:06.3]} 21. Bxd4 {[%clk 0:02:43.5]} 21... Nc5 {[%clk 0:02:05.9]} 22. h3
{[%clk 0:02:42.9]} 22... Qh4 {[%clk 0:02:00.6]} 23. hxg4 {[%clk 0:02:27.9]}
23... Qxg4 {[%clk 0:02:01.5]} 24. Qe2 {[%clk 0:02:24.5]} 24... Qh4 {[%clk
0:01:51.2]} 25. Qd2 {[%clk 0:02:22.8]} 25... Rf7 {[%clk 0:01:48.3]} 26. Re3
{[%clk 0:02:23]} 26... Rh7 {[%clk 0:01:46.2]} 27. Rh3 {[%clk 0:02:23.1]} 27...
Qe7 {[%clk 0:01:41.3]} 28. Kh2 {[%clk 0:02:20.8]} 28... Rxh3+ {[%clk 0:01:39.5]}
29. gxh3 {[%clk 0:02:20.6]} 29... Qh4 {[%clk 0:01:33.4]} 30. Rg1 {[%clk
0:02:18.8]} 30... Kf7 {[%clk 0:01:33.2]} 31. Qe3 {[%clk 0:02:16.1]} 31... Nd3
{[%clk 0:01:30.7]} 32. Bxb6 {[%clk 0:02:12.4]} 32... Qxf4+ {[%clk 0:01:29.9]}
33. Qxf4 {[%clk 0:02:12]} 33... Nxf4 {[%clk 0:01:29.3]} 34. Be3 {[%clk
0:02:11.2]} 34... Nd3 {[%clk 0:01:28.8]} 35. Kg3 {[%clk 0:02:11.2]} 35... Nxb2
{[%clk 0:01:28.3]} 36. Rb1 {[%clk 0:02:03.4]} 36... Nxc4 {[%clk 0:01:28.4]} 37.
Rb7+ {[%clk 0:02:04.3]} 37... Kf6 {[%clk 0:01:22.9]} 38. Bd4+ {[%clk 0:02:04.6]}
38... Ne5 {[%clk 0:01:22.6]} 39. Rd7 {[%clk 0:02:04.9]} 39... Ra6 {[%clk
0:01:14.9]} 40. h4 {[%clk 0:02:03]} 40... g5 {[%clk 0:01:13.8]} 41. hxg5+ {[%clk
0:02:02.5]} 41... Kxg5 {[%clk 0:01:14.7]} 42. Rg7+ {[%clk 0:02:01.5]} 42... Ng6
{[%clk 0:01:10.1]} 43. Be3+ {[%clk 0:01:52.5]} 43... Kf6 {[%clk 0:01:10]} 44.
Bd4+ {[%clk 0:01:52.6]} 44... Ne5 {[%clk 0:01:00.1]} 45. Rh7 {[%clk 0:01:51.2]}
45... Kg6 {[%clk 0:00:54]} 46. Re7 {[%clk 0:01:49.6]} 46... Nf3 {[%clk
0:00:45.6]} 47. Bc3 {[%clk 0:01:43.8]} 47... Rb6 {[%clk 0:00:34.3]} 48. Kf4
{[%clk 0:01:44]} 48... Rb5 {[%clk 0:00:29.2]} 49. Re6+ {[%clk 0:01:43.5]} 49...
Kf7 {[%clk 0:00:28.6]} 50. Rxd6 {[%clk 0:01:42.9]} 50... Rc5 {[%clk 0:00:23.8]}
51. Rc6 {[%clk 0:01:31.8]} 51... Rxd5 {[%clk 0:00:23.2]} 52. Rf6+ {[%clk
0:01:32.4]} 52... Ke7 {[%clk 0:00:22.3]} 53. Rxf5 {[%clk 0:01:32.7]} 53... Rd3
{[%clk 0:00:14.7]} 54. Kxe4 {[%clk 0:01:31.8]} 54... Rxc3 {[%clk 0:00:14.5]} 55.
Rxf3 {[%clk 0:01:32]} 55... Rxf3 {[%clk 0:00:13.9]} 56. Kxf3 {[%clk 0:01:32.9]}
1/2-1/2